bitfinex/quotes_BTCUSD_20240617
["timestamp","ask_amount","ask_price","bid_price","bid_amount"]
[1718643594794,0.00853,65905.0,65904.0,2.4150633]
[1718643595253,0.00853,65905.0,65904.0,2.5150633]
[1718643595455,0.00853,65905.0,65904.0,1.96566158]
[1718643595613,0.34433,65905.0,65904.0,1.54731877]
[1718643596298,0.34433,65905.0,65904.0,1.22600967]
[1718643596702,0.34433,65905.0,65904.0,1.52948067]
[1718643596908,0.34433,65905.0,65904.0,0.028]
[1718643597959,0.34433,65905.0,65904.0,0.014]
[1718643598162,0.1974,65904.0,65897.0,0.060719]
[1718643598367,0.2007,65899.0,65898.0,0.151749]
[1718643598567,0.3435,65898.0,65897.0,0.151751]
[1718643599008,0.3435,65898.0,65897.0,0.455254]
[1718643599717,0.3435,65898.0,65897.0,0.772757]
[1718643599938,0.3435,65898.0,65897.0,0.786757]
[1718643600178,0.3435,65898.0,65897.0,0.772757]
[1718643600911,0.3435,65898.0,65897.0,1.22898888]
[1718643601347,0.3435,65898.0,65897.0,1.35491387]
[1718643601576,0.3435,65898.0,65897.0,1.35491585]
[1718643602148,0.3435,65898.0,65897.0,1.34091585]
[1718643602355,0.3435,65898.0,65897.0,1.36891585]
[1718643602559,0.3435,65898.0,65897.0,0.93948588]
[1718643602776,0.3435,65898.0,65897.0,0.014]
[1718643603124,0.3435,65898.0,65897.0,0.483254]
[1718643603338,0.3435,65898.0,65897.0,0.786757]
[1718643603549,0.3435,65898.0,65897.0,0.483254]
[1718643604326,0.3435,65898.0,65897.0,0.028]
[1718643604740,0.3435,65898.0,65897.0,0.483254]
[1718643604968,0.3435,65898.0,65897.0,0.786757]
[1718643605147,0.3605,65902.0,65901.0,0.455227]
[1718643605349,0.00853,65905.0,65904.0,0.758677]
[1718643605553,0.00853,65905.0,65904.0,1.51834788]
[1718643605765,0.00853,65905.0,65904.0,1.34079089]
[1718643606100,0.00853,65905.0,65904.0,1.03731989]
[1718643606282,0.00853,65905.0,65902.0,0.151739]
[1718643606481,0.1988,65903.0,65902.0,0.30348]
[1718643606694,0.1988,65903.0,65902.0,0.45522]
[1718643606889,0.1988,65903.0,65902.0,0.7587]
[1718643607228,0.1988,65903.0,65902.0,1.21490888]
[1718643607443,0.00853,65905.0,65904.0,1.062148]
[1718643607653,0.00853,65905.0,65904.0,1.34079478]
[1718643609153,0.00853,65905.0,65904.0,1.36079478]
[1718643609359,0.00853,65905.0,65904.0,1.66426578]
[1718643609576,0.00853,65905.0,65904.0,1.97905203]
[1718643609989,0.00853,65905.0,65904.0,2.62362303]
[1718643610206,0.00853,65905.0,65904.0,2.43415203]
[1718643610626,0.00853,65905.0,65904.0,2.83962303]
[1718643610831,0.00853,65905.0,65904.0,2.93962303]
[1718643611044,0.00853,65905.0,65904.0,3.25709403]
[1718643611260,0.00853,65905.0,65904.0,3.24309403]
[1718643611502,0.00085,65918.0,65915.0,2.029915]
[1718643611710,0.00085,65918.0,65915.0,2.41992703]
[1718643614040,0.00085,65918.0,65915.0,2.43392703]
[1718643614873,0.00085,65918.0,65915.0,2.44792703]
[1718643615121,0.00085,65918.0,65915.0,2.41992703]
[1718643615550,0.00085,65918.0,65915.0,2.44788813]
[1718643616264,0.00085,65918.0,65915.0,2.08678813]
[1718643616467,0.00085,65918.0,65915.0,1.78336713]
[1718643616677,0.00085,65918.0,65915.0,1.79200188]
[1718643617077,0.00085,65918.0,65915.0,2.10670653]
[1718643617278,0.00085,65918.0,65915.0,2.09270653]
[1718643617721,0.00085,65918.0,65915.0,2.10670653]
[1718643617938,0.00085,65918.0,65915.0,2.63805825]
[1718643618148,0.00085,65918.0,65915.0,2.77585825]
[1718643618357,0.00085,65918.0,65915.0,2.94835825]
[1718643618559,0.00085,65918.0,65915.0,2.9666013]
[1718643618761,0.00085,65918.0,65915.0,2.9806013]
[1718643619176,0.00085,65918.0,65915.0,2.9946013]
[1718643619387,0.00085,65918.0,65915.0,2.9806013]
[1718643619590,0.00085,65918.0,65915.0,3.0306013]
[1718643619793,0.00085,65918.0,65915.0,3.0446013]
[1718643620205,0.00085,65918.0,65917.0,1.89076]
[1718643620567,0.00085,65918.0,65917.0,3.26348353]
[1718643620777,0.19473,65942.0,65937.0,1.081616]
[1718643620984,0.19473,65942.0,65937.0,1.21434488]
[1718643621604,0.19473,65942.0,65937.0,1.53766388]
[1718643621771,0.19473,65942.0,65937.0,1.51766388]
[1718643621977,0.19473,65942.0,65937.0,1.53766388]
[1718643622408,0.19473,65942.0,65937.0,1.21434488]
[1718643622617,0.19473,65942.0,65937.0,1.23934488]
[1718643622874,0.19473,65942.0,65937.0,1.21934488]
[1718643623076,0.19473,65942.0,65937.0,1.24534488]
[1718643623201,0.39543,65942.0,65937.0,1.22534488]
[1718643623809,0.19473,65942.0,65937.0,1.22534488]
[1718643623999,0.19473,65942.0,65937.0,1.44534488]
[1718643624810,0.19473,65942.0,65937.0,1.74866388]
[1718643625012,0.00853,65942.0,65937.0,1.44534488]
[1718643625213,0.00853,65942.0,65937.0,1.59944488]
[1718643625628,0.00853,65942.0,65937.0,1.59344488]
[1718643625826,0.00853,65942.0,65937.0,1.43434488]
[1718643626032,0.00853,65942.0,65937.0,1.44834488]
[1718643626465,0.00853,65942.0,65937.0,1.8275946]
[1718643626678,0.00853,65942.0,65937.0,1.8415946]
[1718643626887,0.00853,65942.0,65937.0,1.8275946]
[1718643627313,0.00853,65942.0,65937.0,2.1929946]
[1718643627514,0.00853,65942.0,65937.0,1.46234488]
[1718643627713,0.00853,65942.0,65937.0,1.44834488]
[1718643628141,0.00853,65942.0,65937.0,1.46234488]
[1718643628343,0.00853,65942.0,65937.0,1.76566388]
[1718643628512,0.00853,65942.0,65937.0,1.75166388]
[1718643628713,0.00853,65942.0,65937.0,1.85366388]
[1718643628944,0.00853,65942.0,65937.0,1.90366388]
[1718643629140,0.00853,65942.0,65937.0,1.90166388]
[1718643629381,0.00853,65942.0,65937.0,2.01766388]
[1718643629607,0.00853,65942.0,65937.0,2.19776388]
[1718643629815,0.00853,65942.0,65937.0,2.30426208]
[1718643630031,0.00853,65942.0,65937.0,2.60758108]
[1718643630299,0.00853,65942.0,65937.0,2.77898108]
[1718643630519,0.00853,65942.0,65937.0,2.46166208]
[1718643630731,0.00853,65942.0,65937.0,2.76498108]
[1718643631345,0.00853,65942.0,65937.0,2.77898108]
[1718643631770,0.00853,65942.0,65937.0,2.76498108]
[1718643632007,0.00853,65942.0,65937.0,2.47566208]
[1718643632233,0.00853,65942.0,65937.0,2.02216208]
[1718643632682,0.00853,65942.0,65937.0,2.03616208]
[1718643632943,0.00853,65942.0,65937.0,2.13759392]
[1718643633202,0.00853,65942.0,65937.0,2.01766388]
[1718643633431,0.00853,65942.0,65937.0,2.44091058]
[1718643634307,0.00853,65942.0,65941.0,1.840155]
[1718643634516,0.00853,65942.0,65941.0,2.09288388]
[1718643634742,0.00853,65942.0,65941.0,2.14288388]
[1718643634933,0.00853,65942.0,65941.0,1.95919842]
[1718643635372,0.00853,65942.0,65941.0,2.26249942]
[1718643635586,0.00853,65942.0,65941.0,2.27649942]
[1718643636023,0.00853,65942.0,65941.0,2.62939942]
[1718643636237,0.00853,65942.0,65941.0,2.9439442]
[1718643638692,0.00853,65942.0,65941.0,2.6406432]
[1718643638902,0.00853,65942.0,65941.0,2.6546432]
[1718643639558,0.00853,65942.0,65941.0,2.9579442]
[1718643641352,0.00853,65942.0,65941.0,2.97199515]
[1718643642138,0.00085,65950.0,65941.0,2.97199515]
[1718643642139,0.00085,65950.0,65949.0,0.373632]
[1718643642352,0.00854,65952.0,65951.0,1.133037]
[1718643642566,0.00854,65952.0,65951.0,2.91456612]
[1718643643015,0.00085,65956.0,65955.0,1.934166]
[1718643643239,0.00085,65956.0,65955.0,3.10576712]
[1718643643661,0.00085,65956.0,65955.0,3.40900412]
[1718643645146,0.00085,65956.0,65955.0,3.10576712]
[1718643645854,0.00085,65956.0,65955.0,3.11976712]
[1718643646334,0.00085,65956.0,65955.0,3.10576712]
[1718643646791,0.00085,65956.0,65955.0,3.11976712]
[1718643647031,0.00085,65956.0,65955.0,2.81653012]
[1718643647325,0.00085,65956.0,65955.0,4.61976712]
[1718643648892,0.00085,65956.0,65955.0,3.11976712]
[1718643649099,0.00085,65956.0,65955.0,3.13376712]
[1718643649304,0.00085,65956.0,65955.0,3.11976712]
[1718643649535,0.00085,65956.0,65955.0,3.10576712]
[1718643649761,0.00085,65956.0,65955.0,3.1380301]
[1718643649995,0.00085,65956.0,65955.0,3.29688864]
[1718643650216,0.00853,65960.0,65959.0,2.224299]
[1718643650428,7.3e-07,65960.0,65959.0,3.05182166]
[1718643650651,7.3e-07,65960.0,65959.0,3.35503966]
[1718643650866,7.3e-07,65960.0,65959.0,4.71018112]
[1718643651075,7.3e-07,65960.0,65959.0,4.85503966]
[1718643651523,7.3e-07,65961.0,65960.0,2.692891]
[1718643651728,7.3e-07,65961.0,65960.0,3.52041366]
[1718643651957,7.3e-07,65961.0,65960.0,3.66881366]
[1718643653030,7.3e-07,65961.0,65960.0,3.68281366]
[1718643653273,7.3e-07,65961.0,65960.0,3.70581366]
[1718643654110,7.3e-07,65961.0,65960.0,3.90861366]
[1718643655096,7.3e-07,65961.0,65960.0,3.89461366]
[1718643655303,7.3e-07,65961.0,65960.0,3.90861366]
[1718643655505,7.3e-07,65961.0,65960.0,3.92261366]
[1718643656583,7.3e-07,65961.0,65960.0,4.12331366]
[1718643657409,7.3e-07,65961.0,65960.0,5.62331366]
[1718643657839,7.3e-07,65961.0,65960.0,3.69861366]
[1718643658047,7.3e-07,65961.0,65960.0,2.49712712]
[1718643658499,7.3e-07,65961.0,65960.0,2.80034112]
[1718643658708,7.3e-07,65961.0,65960.0,2.94588837]
[1718643658912,7.3e-07,65961.0,65960.0,2.94694208]
[1718643659136,7.3e-07,65961.0,65960.0,2.49712712]
[1718643659793,7.3e-07,65961.0,65960.0,2.64289305]
[1718643660004,7.3e-07,65961.0,65960.0,3.29420705]
[1718643660210,7.3e-07,65961.0,65960.0,3.64185036]
[1718643660421,7.3e-07,65961.0,65960.0,3.29420705]
[1718643660629,7.3e-07,65961.0,65960.0,3.33864407]
[1718643660839,7.3e-07,65961.0,65960.0,2.64289305]
[1718643661061,7.3e-07,65961.0,65960.0,2.94610705]
[1718643661896,7.3e-07,65961.0,65960.0,2.33967905]
[1718643662110,7.3e-07,65961.0,65960.0,2.19391312]
[1718643662319,7.3e-07,65961.0,65960.0,2.09391312]
[1718643662524,7.3e-07,65961.0,65960.0,2.14391312]
[1718643662525,0.35400073,65961.0,65960.0,2.14391312]
[1718643663362,0.35400073,65961.0,65960.0,2.11584931]
[1718643663576,0.35400073,65961.0,65960.0,2.41906331]
[1718643663816,0.35400073,65961.0,65960.0,2.14384931]
[1718643664037,0.35400073,65961.0,65960.0,2.1453854]
[1718643664703,0.35400073,65961.0,65960.0,2.0953854]
[1718643664945,0.35400073,65961.0,65960.0,2.4495344]
[1718643665160,7.3e-07,65961.0,65960.0,3.0919624]
[1718643665375,0.2017,65972.0,65960.0,3.0919624]
[1718643665376,0.2017,65972.0,65970.0,1.736256]
[1718643665600,0.2017,65972.0,65970.0,2.7235604]
[1718643666935,0.3556,65979.0,65970.0,2.7982004]
[1718643667153,0.3556,65979.0,65970.0,3.29749411]
[1718643667381,0.05319919,66013.0,66003.0,0.02]
[1718643667608,0.08445072,66022.0,65993.0,0.303059]
[1718643667609,0.00852,66022.0,66012.0,0.322975]
[1718643667830,0.37456074,66014.0,66012.0,0.02]
[1718643668047,0.37456074,66014.0,66013.0,0.474455]
[1718643668048,0.0132794,66014.0,66013.0,0.474455]
[1718643668292,0.0132794,66014.0,66013.0,1.080395]
[1718643668506,0.0132794,66014.0,66013.0,1.43312388]
[1718643668715,0.0132794,66014.0,66013.0,1.55142286]
[1718643669429,0.1657794,66014.0,66013.0,1.43312388]
[1718643669858,0.1657794,66014.0,66013.0,1.44312388]
[1718643670077,0.0132794,66014.0,66013.0,1.46212388]
[1718643670283,0.0132794,66014.0,66013.0,1.50212388]
[1718643670490,0.0132794,66014.0,66013.0,2.03721671]
[1718643670698,0.0132794,66014.0,66013.0,2.02821671]
[1718643671394,0.0132794,66014.0,66013.0,2.43318671]
[1718643671622,0.0132794,66014.0,66013.0,2.13021671]
[1718643672051,0.0132794,66014.0,66013.0,1.50124671]
[1718643672285,0.2007,66032.0,66023.0,0.02]
[1718643672518,0.2007,66032.0,66031.0,0.151444]
[1718643672753,0.2007,66032.0,66023.0,0.322924]
[1718643672963,0.2007,66032.0,66023.0,0.02]
[1718643673173,0.2007,66032.0,66028.0,0.3029]
[1718643673407,0.2007,66032.0,66029.0,0.302896]
[1718643673578,0.2007,66032.0,66031.0,0.151444]
[1718643674052,0.29197,66032.0,66023.0,0.011]
[1718643674261,0.2007,66024.0,66023.0,0.011]
[1718643674469,0.2007,66024.0,66009.0,0.02]
[1718643674470,0.302934,66021.0,66009.0,0.02]
[1718643674680,0.2007,66017.0,66012.0,0.02]
[1718643674885,0.2007,66017.0,66012.0,0.171487]
[1718643674886,0.00757455,66016.0,66012.0,0.171487]
[1718643675095,0.00757455,66016.0,66007.0,0.302997]
[1718643675096,0.00757459,66016.0,66007.0,0.02]
[1718643675315,0.00757459,66016.0,65996.0,0.25]
[1718643675316,0.3501,66015.0,66012.0,0.02]
[1718643675525,0.06176618,66015.0,66014.0,0.151483]
[1718643675738,0.06176618,66015.0,66014.0,0.777415]
[1718643676179,0.06176618,66015.0,66014.0,0.474449]
[1718643676416,0.06176618,66015.0,66014.0,0.171483]
[1718643676633,0.06176618,66015.0,66014.0,0.02]
[1718643676854,0.06176618,66015.0,66014.0,0.031]
[1718643677090,0.06176618,66015.0,66014.0,0.34521188]
[1718643677317,0.2007,66035.0,66030.0,0.151444]
[1718643677530,0.01794334,66036.0,66035.0,0.151433]
[1718643677775,0.1,66041.0,66028.0,0.02]
[1718643678001,0.1,66041.0,66015.0,0.16272888]
[1718643678002,0.2007,66029.0,66023.0,0.02]
[1718643678211,0.2007,66029.0,66017.0,0.30295]
[1718643678212,0.2007,66029.0,66025.0,0.02]
[1718643678429,0.09127,66036.0,66030.0,0.151446]
[1718643678648,0.09127,66036.0,66031.0,0.302886]
[1718643678649,0.2007,66035.0,66031.0,0.302886]
[1718643678866,0.30869155,66042.0,66034.0,0.171437]
[1718643679123,0.01829921,66042.0,66039.0,0.151424]
[1718643679321,0.09127,66045.0,66043.0,0.151416]
[1718643679533,0.3383,66044.0,66043.0,0.151416]
[1718643679752,0.539,66044.0,66043.0,0.151416]
[1718643680188,0.539,66044.0,66034.0,0.302874]
[1718643680189,0.539,66044.0,66037.0,0.171428]
[1718643680437,0.539,66044.0,66022.0,0.2]
[1718643680438,0.539,66044.0,66033.0,0.02]
[1718643680652,0.2007,66039.0,66033.0,0.17272888]
[1718643680868,0.2007,66034.0,66030.0,0.02]
[1718643681089,0.2007,66034.0,66030.0,0.17272888]
[1718643681090,0.3383,66033.0,66030.0,0.17272888]
[1718643681309,0.3383,66033.0,66032.0,0.02]
[1718643681522,0.3383,66033.0,66032.0,0.474324]
[1718643681791,0.3383,66033.0,66032.0,0.777207]
[1718643682703,0.3383,66033.0,66032.0,1.23281888]
[1718643682919,0.004,66044.0,66032.0,1.23281888]
[1718643682920,0.1566,66038.0,66037.0,0.47429]
[1718643683136,0.184,66043.0,66042.0,0.757092]
[1718643683357,0.184,66043.0,66042.0,1.21265788]
[1718643683786,0.004,66044.0,66042.0,1.21265788]
[1718643683994,0.1536,66058.0,66057.0,0.171384]
[1718643684240,0.192,66059.0,66058.0,0.474146]
[1718643684444,0.192,66059.0,66058.0,0.62687488]
[1718643684662,0.192,66059.0,66058.0,0.60687488]
[1718643684926,0.192,66059.0,66056.0,0.02]
[1718643685182,0.192,66059.0,66057.0,0.17272888]
[1718643685417,0.192,66059.0,66058.0,0.02]
[1718643685645,0.192,66059.0,66058.0,0.171382]
[1718643685839,0.192,66059.0,66057.0,0.033]
[1718643686103,0.00756959,66058.0,66057.0,0.487152]
[1718643686332,0.192,66059.0,66058.0,0.151382]
[1718643686570,0.192,66059.0,66057.0,0.013]
[1718643686853,0.00756961,66058.0,66057.0,0.013]
[1718643687082,0.00756961,66058.0,66057.0,0.184384]
[1718643687304,0.00756961,66058.0,66057.0,0.467152]
[1718643687555,0.00756961,66058.0,66057.0,0.027]
[1718643687795,0.00756961,66058.0,66057.0,0.151384]
[1718643688222,0.00756961,66058.0,66056.0,0.014]
[1718643688660,0.00756961,66058.0,66056.0,0.151385]
[1718643688877,0.1543,66057.0,66047.0,0.02]
[1718643689128,0.2028,66064.0,66063.0,0.15137]
[1718643689402,0.2028,66064.0,66057.0,0.038]
[1718643689627,0.2007,66060.0,66051.0,0.171397]
[1718643689855,0.00756977,66059.0,66056.0,0.014]
[1718643690072,0.2007,66057.0,66056.0,0.014]
[1718643690284,0.2007,66057.0,66054.0,0.02]
[1718643690411,0.00756963,66056.0,66052.0,0.15272888]
[1718643690825,0.3571,66054.0,66047.0,0.02]
[1718643691050,0.00757035,66053.0,66051.0,0.322792]
[1718643691307,0.3571,66054.0,66053.0,0.151393]
[1718643691706,0.2007,66057.0,66056.0,0.171386]
[1718643692121,0.2007,66057.0,66056.0,0.151386]
[1718643692328,0.2007,66057.0,66052.0,0.01]
[1718643692531,0.00757002,66056.0,66052.0,0.01]
[1718643692735,0.00757002,66056.0,66052.0,0.013]
[1718643693115,0.00757002,66056.0,66049.0,0.171402]
[1718643693315,0.00757002,66056.0,66050.0,0.15272888]
[1718643693878,0.00757002,66056.0,66051.0,0.02]
[1718643694082,0.00757002,66058.0,66052.0,0.032]
[1718643694255,0.00757002,66058.0,66052.0,0.02]
[1718643694485,0.00757002,66058.0,66056.0,0.151385]
[1718643694700,0.0075697,66058.0,66056.0,0.151385]
[1718643695126,0.0075697,66058.0,66055.0,0.02]
[1718643695332,0.0075697,66058.0,66054.0,0.171389]
[1718643695782,0.0075697,66058.0,66055.0,0.02]
[1718643695987,0.0075697,66058.0,66056.0,0.005]
[1718643696410,0.0075697,66058.0,66053.0,0.02]
[1718643696411,0.0075697,66058.0,66055.0,0.008]
[1718643696625,0.0084197,66058.0,66055.0,0.008]
[1718643696911,0.0084197,66058.0,66055.0,0.028]
[1718643697125,0.00085,66058.0,66057.0,0.474152]
[1718643697349,0.00085,66058.0,66057.0,0.77692]
[1718643697577,0.00085,66058.0,66057.0,0.171384]
[1718643697791,0.00841929,66058.0,66056.0,0.007]
[1718643698225,0.151384,66057.0,66056.0,0.007]
[1718643698441,0.00085,66058.0,66056.0,0.007]
[1718643698656,0.00085,66058.0,66057.0,0.62688088]
[1718643698865,0.00085,66058.0,66054.0,0.02]
[1718643699078,0.00085,66058.0,66057.0,0.004]
[1718643699739,0.17411966,66058.0,66057.0,0.004]
[1718643699963,0.17411966,66058.0,66056.0,0.007]
[1718643700170,0.302788,66053.0,66040.0,0.02]
[1718643700380,0.2007,66046.0,66041.0,0.15272888]
[1718643700579,0.0075708,66045.0,66044.0,0.060579]
[1718643700830,0.0075708,66045.0,66037.0,0.351429]
[1718643700831,0.4722408,66045.0,66035.0,0.02]
[1718643701064,0.2007,66039.0,66037.0,0.02]
[1718643701269,0.2007,66039.0,66038.0,0.060593]
[1718643701517,0.2007,66039.0,66035.0,0.02]
[1718643701743,0.2007,66039.0,66021.0,0.21]
[1718643701744,0.2007,66039.0,66034.0,0.060597]
[1718643701983,0.66537,66045.0,66038.0,0.302855]
[1718643702201,0.3734,66045.0,66035.0,0.02]
[1718643702428,0.3734,66045.0,66036.0,0.15272888]
[1718643702647,0.3734,66045.0,66044.0,0.151414]
[1718643702852,0.92132802,66054.0,66044.0,0.151414]
[1718643702853,0.92132802,66054.0,66044.0,0.15272888]
[1718643703318,0.00757073,66053.0,66044.0,0.15272888]
[1718643703535,0.2007,66050.0,66042.0,0.02]
[1718643703750,0.00757122,66049.0,66044.0,0.014]
[1718643703964,0.001,66045.0,66044.0,0.014]
[1718643704184,0.00757122,66049.0,66043.0,0.151415]
[1718643704422,0.00757122,66049.0,66042.0,0.02]
[1718643704853,0.00757122,66049.0,66046.0,0.02]
[1718643705068,0.00757051,66049.0,66048.0,0.151403]
[1718643705273,0.00757051,66049.0,66047.0,0.151405]
[1718643705485,0.1695,66055.0,66047.0,0.02]
[1718643705698,0.00757048,66054.0,66048.0,0.02]
[1718643705900,0.00757048,66054.0,66048.0,0.171404]
[1718643706126,0.00757048,66054.0,66047.0,0.171407]
[1718643706338,0.00757048,66054.0,66048.0,0.151404]
[1718643706550,0.00757048,66054.0,66053.0,0.151393]
[1718643706757,0.1695,66055.0,66051.0,0.02]
[1718643706990,0.1695,66055.0,66049.0,0.02]
[1718643707206,0.00757046,66054.0,66050.0,0.1514]
[1718643707436,0.00085,66058.0,66054.0,0.474173]
[1718643707652,0.00085,66058.0,66055.0,0.776942]
[1718643707653,0.29039234,66056.0,66055.0,0.776942]
[1718643708089,0.29039234,66056.0,66055.0,0.454165]
[1718643708311,0.00085,66058.0,66057.0,0.171384]
[1718643708744,0.00085,66058.0,66057.0,0.02]
[1718643708965,0.00085,66058.0,66057.0,1.23241688]
[1718643709187,0.00085,66058.0,66057.0,0.92964888]
[1718643710083,0.00085,66058.0,66057.0,0.93364888]
[1718643710291,0.00085,66058.0,66057.0,1.24241688]
[1718643710718,0.00085,66058.0,66057.0,1.23841688]
[1718643710961,0.00085,66058.0,66057.0,0.92964888]
[1718643711172,0.00085,66058.0,66057.0,1.23241688]
[1718643711596,0.00085,66058.0,66057.0,0.92964888]
[1718643712278,0.00085,66058.0,66057.0,0.93664888]
[1718643712494,0.00085,66058.0,66057.0,0.94364888]
[1718643712703,0.00085,66058.0,66057.0,0.93664888]
[1718643712922,0.00085,66058.0,66057.0,0.94364888]
[1718643713122,0.00085,66058.0,66057.0,0.95764888]
[1718643713565,0.00085,66058.0,66057.0,0.94364888]
[1718643713783,0.00085,66058.0,66057.0,0.17272888]
[1718643714003,0.00085,66058.0,66057.0,0.18672888]
[1718643714423,0.00085,66058.0,66057.0,0.33811288]
[1718643714633,0.00085,66058.0,66057.0,0.18672888]
[1718643714859,0.00085,66058.0,66057.0,0.33811288]
[1718643715299,0.00085,66058.0,66057.0,0.48949688]
[1718643715509,0.00085,66058.0,66057.0,0.64088088]
[1718643715727,0.00085,66058.0,66057.0,0.62688088]
[1718643715945,0.00085,66058.0,66057.0,0.02]
[1718643716187,0.00085,66058.0,66057.0,0.048]
[1718643716412,0.00085,66058.0,66057.0,0.94364888]
[1718643716622,0.00085,66058.0,66057.0,1.23241688]
[1718643716838,0.00085,66058.0,66057.0,1.24641688]
[1718643717518,0.00085,66058.0,66057.0,0.95664888]
[1718643717730,0.00085,66058.0,66057.0,0.94364888]
[1718643717938,0.00085,66058.0,66057.0,0.64088088]
[1718643718149,0.00085,66058.0,66057.0,0.17272888]
[1718643718360,0.00085,66058.0,66057.0,0.32411288]
[1718643718575,0.00085,66058.0,66057.0,0.62688088]
[1718643718808,0.00085,66058.0,66057.0,1.24641688]
[1718643719265,0.00085,66058.0,66057.0,1.44331688]
[1718643719477,0.00085,66058.0,66057.0,1.14054888]
[1718643719697,0.00085,66058.0,66057.0,1.44331688]
[1718643719901,0.00085,66058.0,66057.0,1.45731688]
[1718643720126,0.00085,66058.0,66057.0,1.14054888]
[1718643720344,0.00085,66058.0,66057.0,0.18572888]
[1718643720554,0.00085,66058.0,66057.0,0.62688088]
[1718643720786,0.00085,66058.0,66057.0,0.18672888]
[1718643721007,0.00085,66058.0,66057.0,0.048]
[1718643721215,0.36845,66058.0,66057.0,0.034]
[1718643721431,0.36845,66058.0,66057.0,0.014]
[1718643721651,0.36845,66058.0,66057.0,0.026]
[1718643721855,0.36845,66058.0,66057.0,0.039]
[1718643722780,0.00085,66058.0,66057.0,0.66588088]
[1718643723006,0.00085,66058.0,66057.0,1.28141688]
[1718643723229,0.00853,66081.0,66079.0,0.02]
[1718643723447,0.00853,66081.0,66079.0,0.62673088]
[1718643723669,0.00853,66081.0,66079.0,0.92939888]
[1718643724097,0.00853,66081.0,66079.0,1.23206688]
[1718643724524,0.00853,66081.0,66079.0,0.92939888]
[1718643724950,0.00853,66081.0,66079.0,1.23206688]
[1718643725402,0.00853,66081.0,66079.0,1.33206688]
[1718643725680,0.00775594,66097.0,66085.0,0.2]
[1718643725918,0.17102853,66136.0,66120.0,0.151238]
[1718643726157,0.45558432,66126.0,66106.0,0.25]
[1718643726389,0.36142087,66136.0,66106.0,0.2]
[1718643726390,0.2007,66120.0,66106.0,0.2]
[1718643726638,0.00756228,66119.0,66111.0,0.02]
[1718643726848,0.36142087,66136.0,66112.0,0.15272888]
[1718643726849,0.2007,66121.0,66112.0,0.15272888]
[1718643727067,0.2007,66121.0,66115.0,0.151251]
[1718643727068,0.09849346,66120.0,66115.0,0.151251]
[1718643727272,0.09849346,66120.0,66112.0,0.15272888]
[1718643727273,0.00756346,66120.0,66112.0,0.15272888]
[1718643727706,0.00697442,66119.0,66118.0,0.453733]
[1718643727924,0.00853,66125.0,66124.0,0.151231]
[1718643728137,0.00853,66125.0,66119.0,0.15272888]
[1718643728377,0.00853,66125.0,66111.0,0.014]
[1718643728603,0.00756288,66124.0,66112.0,0.15272888]
[1718643728823,0.0145373,66124.0,66113.0,0.151255]
[1718643729076,0.09093,66123.0,66111.0,0.014]
[1718643729298,0.00756312,66122.0,66111.0,0.16672888]
[1718643729522,0.09093,66118.0,66111.0,0.014]
[1718643729748,0.00756361,66117.0,66111.0,0.014]
[1718643729973,0.09093,66112.0,66111.0,0.014]
[1718643730178,0.09849453,66112.0,66111.0,0.014]
[1718643730409,0.00756451,66115.0,66111.0,0.014]
[1718643730629,0.00872102,66112.0,66111.0,0.790302]
[1718643730847,0.00853,66125.0,66121.0,0.02]
[1718643731065,0.00853,66125.0,66112.0,0.1673]
[1718643731066,0.00853,66125.0,66113.0,0.02]
[1718643731283,0.00756247,66124.0,66118.0,0.014]
[1718643731502,0.00756247,66124.0,66123.0,0.151233]
[1718643731709,0.00853,66125.0,66124.0,0.151231]
[1718643731915,0.00853,66125.0,66124.0,0.30395988]
[1718643732129,0.00853,66125.0,66124.0,0.60642188]
[1718643732345,0.00853,66125.0,66124.0,0.90888388]
[1718643732564,0.1655,66138.0,66127.0,0.02]
[1718643732777,0.00497735,66137.0,66128.0,0.15272888]
[1718643732982,0.00497735,66137.0,66128.0,0.17272888]
[1718643733222,0.00497735,66137.0,66132.0,0.07593072]
[1718643733442,0.0137804,66146.0,66139.0,0.453589]
[1718643733660,0.0137804,66146.0,66139.0,0.553589]
[1718643733875,0.0137804,66146.0,66139.0,0.15272888]
[1718643734104,0.00497735,66145.0,66139.0,0.15272888]
[1718643734318,0.00497735,66145.0,66137.0,0.3832]
[1718643734548,0.00497735,66145.0,66129.0,0.12]
[1718643734761,0.00497735,66145.0,66136.0,0.302403]
[1718643734987,0.0137804,66146.0,66126.0,0.04537669]
[1718643734988,0.1617,66139.0,66126.0,0.04537669]
[1718643735199,0.1617,66139.0,66119.0,0.02]
[1718643735200,0.151216,66131.0,66119.0,0.02]
[1718643735447,0.00497735,66130.0,66120.0,0.45558432]
[1718643735649,0.00497735,66130.0,66117.0,0.02]
[1718643735870,0.00497735,66130.0,66118.0,0.302486]
[1718643736075,0.00497735,66130.0,66117.0,0.15272888]
[1718643736496,0.00497735,66130.0,66119.0,0.151241]
[1718643736717,0.151235,66123.0,66111.0,0.0152]
[1718643736921,0.00497735,66122.0,66112.0,0.15272888]
[1718643737130,0.16528812,66122.0,66112.0,0.15272888]
[1718643737341,0.16528812,66122.0,66107.0,0.02]
[1718643737342,0.01405212,66122.0,66107.0,0.02]
[1718643737555,0.01405212,66122.0,66119.0,0.151241]
[1718643737771,0.00497735,66121.0,66110.0,0.322521]
[1718643738000,0.00497735,66121.0,66111.0,0.15272888]
[1718643738212,0.15124,66120.0,66119.0,0.014]
[1718643738441,0.2493,66129.0,66119.0,0.014]
[1718643738649,0.00904541,66120.0,66111.0,0.15272888]
[1718643738863,0.15125,66116.0,66107.0,0.02]
[1718643739070,0.00497735,66115.0,66110.0,0.014]
[1718643739281,0.00497735,66115.0,66110.0,0.16672888]
[1718643739499,0.00904541,66114.0,66110.0,0.16672888]
[1718643739708,0.00497735,66113.0,66110.0,0.014]
[1718643739916,0.15126,66111.0,66110.0,0.014]
[1718643740124,0.2493,66115.0,66110.0,0.014]
[1718643740332,0.00904541,66111.0,66107.0,0.02]